bitfinex-derivatives/quotes_SOLF0:USTF0_20250509
["timestamp","ask_amount","ask_price","bid_price","bid_amount"]
[1746798586305,40.0568,173.47,173.32,6.62020616]
[1746798586510,40.0568,173.47,173.33,6.62020616]
[1746798586708,40.0568,173.47,173.38,5.7676]
[1746798587011,5.7661,173.44,173.31,16.71636732]
[1746798587210,40.0568,173.47,173.32,6.61772949]
[1746798587413,40.0568,173.47,173.33,6.61772949]
[1746798587608,40.0568,173.47,173.37,5.768]
[1746798587813,5.7665,173.43,173.38,6.61772949]
[1746798588114,5.7665,173.43,173.37,5.768]
[1746798588315,5.7671,173.41,173.32,39.7]
[1746798588513,397.0568,173.47,173.33,6.62197798]
[1746798588717,397.0568,173.47,173.32,39.7]
[1746798588718,397.0568,173.47,173.34,6.62197798]
[1746798589007,397.0568,173.47,173.35,6.62197798]
[1746798589213,16.71636732,173.44,173.29,3.8949]
[1746798589411,16.71636732,173.44,173.31,0.2049]
[1746798589711,16.71636732,173.44,173.32,6.63416014]
[1746798589913,5.7695,173.34,173.31,0.2049]
[1746798590113,39.52,173.36,173.31,0.2049]
[1746798590307,39.52,173.42,173.32,6.64056727]
[1746798590504,5.7678,173.39,173.34,5.769]
[1746798590705,5.7678,173.39,173.35,6.64056727]
[1746798590914,5.7678,173.39,173.34,5.769]
[1746798591111,39.52,173.42,173.35,6.64344333]
[1746798591319,39.42,173.43,173.36,6.64045113]
[1746798591615,5.7661,173.44,173.39,5.7676]
[1746798591816,39.4,173.45,173.39,5.7676]
[1746798592212,357.0,173.56,173.34,16.71636732]
[1746798592416,39.32,173.55,173.36,39.32]
[1746798592618,39.28,173.54,173.36,39.32]
[1746798593212,5.7655,173.46,173.36,39.32]
[1746798593421,39.24,173.47,173.37,6.64081134]
[1746798593713,39.24,173.47,173.38,6.64233833]
[1746798593918,39.24,173.47,173.42,5.7665]
[1746798594118,5.7647,173.48,173.43,6.64233833]
[1746798594320,39.2,173.52,173.44,6.64233833]
[1746798594516,39.2,173.52,173.45,6.64233833]
[1746798594713,39.2,173.52,173.36,66.45535179]
[1746798595014,39.2,173.52,173.41,5.7667]
[1746798595214,39.2,173.52,173.42,6.62445611]
[1746798595516,39.06,173.52,173.43,6.62445611]
[1746798595714,39.06,173.52,173.44,6.62445611]
[1746798596017,39.06,173.52,173.45,6.62445611]
[1746798596218,39.06,173.52,173.36,66.45535179]
[1746798596411,39.06,173.52,173.37,6.62396426]
[1746798596613,39.06,173.52,173.38,6.6241796]
[1746798596813,39.06,173.52,173.39,6.6241796]
[1746798597019,5.7657,173.45,173.4,12.3912796]
[1746798597318,39.06,173.52,173.41,6.6241796]
[1746798597509,39.06,173.52,173.42,6.6241796]
[1746798597824,396.06,173.52,173.44,1.0]
[1746798598112,5.7656,173.45,173.44,1.0]
[1746798598312,44.5056,173.45,173.44,0.8658]
[1746798598518,38.74,173.45,173.35,5.7687]
[1746798598717,38.74,173.45,173.36,6.62957828]
[1746798598919,38.74,173.45,173.37,6.62957828]
[1746798599118,38.74,173.45,173.38,6.62957828]
[1746798599319,38.74,173.45,173.39,6.62957828]
[1746798599617,38.74,173.45,173.34,38.78]
[1746798599817,38.74,173.45,173.35,6.63021312]
[1746798600015,38.74,173.45,173.36,6.63021312]
[1746798600218,38.74,173.45,173.37,6.63021312]
[1746798600415,38.74,173.45,173.38,6.63021312]
[1746798600715,38.74,173.45,173.39,6.63021312]
[1746798600916,38.74,173.45,173.4,6.63021312]
[1746798601117,5.7671,173.41,173.36,5.7686]
[1746798601317,357.0,173.52,173.37,6.63046486]
[1746798601527,38.5,173.51,173.38,6.63046486]
[1746798601711,38.5,173.51,173.39,6.63046486]
[1746798601915,5.7662,173.44,173.4,6.63046486]
[1746798602115,5.7662,173.44,173.41,6.63046486]
[1746798602318,38.5,173.51,173.33,3.8577]
[1746798602517,38.5,173.51,173.34,6.62976023]
[1746798602720,27.13535179,173.48,173.35,6.62976023]
[1746798602917,27.13535179,173.48,173.36,6.62976023]
[1746798603122,27.13535179,173.48,173.37,6.62976023]
[1746798603318,27.13535179,173.48,173.33,7.6423]
[1746798603519,27.13535179,173.48,173.34,6.6357205]
[1746798603829,38.3,173.47,173.35,6.6357205]
[1746798604018,5.7676,173.39,173.36,6.6357205]
[1746798604221,5.7676,173.39,173.34,5.7692]
[1746798604623,38.3,173.47,173.33,1.8728]
[1746798604817,357.0,173.47,173.33,1.8728]
[1746798605128,5.7685,173.37,173.32,462.6897]
[1746798605324,27.13535179,173.44,173.33,6.63855966]
[1746798605532,38.18,173.4,173.34,6.63855966]
[1746798605734,38.18,173.4,173.31,5.9751]
[1746798606431,38.18,173.4,173.32,6.64418739]
[1746798606632,38.18,173.4,173.32,5.7698]
[1746798606829,38.08,173.42,173.31,0.2049]
[1746798607133,38.08,173.42,173.35,5.7687]
[1746798607631,38.08,173.42,173.31,0.2049]
[1746798607832,38.08,173.42,173.32,6.64973502]
[1746798608134,38.08,173.42,173.33,6.64973502]
[1746798608329,38.08,173.42,173.31,0.2049]
[1746798608525,357.0,173.41,173.32,6.64709175]
[1746798608734,27.13535179,173.4,173.31,0.2049]
[1746798609137,5.7694,173.34,173.31,0.2049]
[1746798609643,5.7696,173.33,173.32,6.65727933]
[1746798609934,37.9,173.35,173.32,6.65727933]
[1746798610134,5.7693,173.34,173.31,0.2049]
[1746798610438,37.9,173.35,173.31,0.2049]
[1746798610637,27.13535179,173.32,173.2,1.8904]
[1746798610831,27.13535179,173.32,173.21,6.66757914]
[1746798611039,27.13535179,173.32,173.15,3.7468]
[1746798611435,27.13535179,173.34,173.18,5.7745]
[1746798611630,5.7722,173.25,173.18,5.7745]
[1746798611834,37.94,173.26,173.15,3.7468]
[1746798612032,37.94,173.26,173.11,1.9566]
[1746798612231,5.7742,173.2,173.11,3.847]
[1746798612438,5.7742,173.2,173.12,6.67935103]
[1746798612642,5.7735,173.22,173.13,6.67935103]
[1746798612940,37.94,173.26,173.14,6.67935103]
[1746798613141,37.94,173.26,173.15,6.67935103]
[1746798613343,37.94,173.26,173.16,6.67935103]
[1746798613533,27.13535179,173.24,173.11,3.847]
[1746798613839,27.13535179,173.2,173.12,6.67000255]
[1746798614044,37.9,173.19,173.04,5.6966]
[1746798614234,5.7746,173.18,173.12,5.7766]
[1746798614435,5.7746,173.18,173.13,6.67171818]
[1746798614636,37.88,173.2,173.11,5.7767]
[1746798614936,37.88,173.2,173.04,43.5966]
[1746798615144,37.88,173.2,173.05,6.65843345]
[1746798615441,65.01535179,173.2,173.06,6.65843345]
[1746798615642,27.13535179,173.16,173.04,43.5966]
[1746798615837,5.777,173.11,173.05,5.7788]
[1746798616233,5.777,173.11,173.04,43.5966]
[1746798616234,38.1,173.14,173.04,1.9626]
[1746798616440,27.13535179,173.12,173.01,5.7802]
[1746798616635,27.13535179,173.12,172.93,457.08]
[1746798616636,27.13535179,173.12,172.95,38.32]
[1746798616837,27.13535179,173.12,172.96,1.8925]
[1746798617140,457.08,173.16,172.83,27.15288682]
[1746798617141,27.31469597,173.01,172.83,27.15288682]
[1746798617336,38.3,173.0,172.84,5.7126]
[1746798617732,38.3,173.0,172.85,6.66646249]
[1746798617940,38.24,172.99,172.86,6.66646249]
[1746798618147,38.24,172.99,172.87,6.66646249]
[1746798618438,38.24,172.99,172.88,6.66646249]
[1746798618643,38.24,172.99,172.84,5.7126]
[1746798618841,5.7823,172.95,172.85,6.51496331]
[1746798619039,5.7823,172.95,172.86,6.51496331]
[1746798619240,27.31469597,172.98,172.84,5.7126]
[1746798619739,27.31469597,172.98,172.84,3.8287]
[1746798620037,27.31469597,172.94,172.78,1.8839]
[1746798620243,5.7839,172.91,172.78,1.8839]
[1746798620541,38.42,172.93,172.78,1.8839]
[1746798621134,38.44,172.92,172.78,1.8839]
[1746798621350,38.44,172.92,172.78,29.19859597]
[1746798621541,65.73469597,172.97,172.79,44.81871048]
[1746798621736,65.73469597,172.97,172.8,6.39871048]
[1746798621940,38.42,172.97,172.8,6.39871048]
[1746798622141,38.42,172.97,172.81,62.0]
[1746798622345,27.31469597,172.96,172.79,38.42]
[1746798622738,27.31469597,172.96,172.8,6.38366041]
[1746798622940,38.42,172.97,172.8,6.38366041]
[1746798623248,27.31469597,172.96,172.79,65.73469597]
[1746798623441,27.31469597,172.96,172.79,38.4]
[1746798623636,27.31469597,172.92,172.79,38.4]
[1746798623836,38.52,172.91,172.79,38.4]
[1746798624242,44.3226,172.95,172.88,5.7845]
[1746798624546,38.54,172.95,172.8,27.31469597]
[1746798624844,5.7829,172.93,172.8,27.31469597]
[1746798625044,38.54,172.95,172.78,1.8839]
[1746798625746,27.31469597,172.94,172.78,1.8839]
[1746798625943,5.7836,172.91,172.78,1.8839]
[1746798626159,27.31469597,172.94,172.78,1.8839]
[1746798626547,5.7853,172.86,172.78,1.8839]
[1746798626942,38.48,172.89,172.78,5.7878]
[1746798627142,38.48,172.89,172.77,3.7946]
[1746798628150,27.31469597,172.91,172.77,3.7946]
[1746798628341,38.44,172.92,172.77,3.7946]
[1746798628848,44.2233,172.92,172.87,5.7849]
[1746798629048,38.44,172.92,172.81,38.38]
[1746798629245,395.36,173.0,172.84,27.31469597]
[1746798629451,5.7823,172.95,172.84,27.31469597]
[1746798629849,5.7823,172.95,172.9,5.7839]
[1746798630161,27.31469597,172.99,172.82,40.3077]
[1746798630348,27.31469597,172.98,172.87,5.7846]
[1746798630855,395.36,173.0,172.87,5.7846]
[1746798631152,27.31469597,172.98,172.86,5.7853]
[1746798631455,357.0,172.97,172.82,40.3077]
[1746798631648,357.0,172.97,172.84,5.7857]
[1746798631855,357.0,172.97,172.82,40.3077]
[1746798632051,5.7837,172.91,172.85,5.7855]
[1746798632349,38.14,172.93,172.82,40.3077]
[1746798633155,5.7842,172.9,172.83,5.7862]
[1746798633849,5.7842,172.9,172.84,5.7858]
[1746798634655,5.7844,172.89,172.82,38.32]
[1746798634859,38.14,172.93,172.82,38.32]
[1746798635051,38.14,172.93,172.82,44.1063]
[1746798635253,38.14,172.93,172.75,2.0]
[1746798635254,27.31469597,172.91,172.75,2.0]
[1746798635455,27.31469597,172.87,172.75,2.0]
[1746798635652,5.7857,172.85,172.75,2.0]
[1746798636160,5.7862,172.84,172.76,5.7885]
[1746798636659,37.86,172.86,172.75,2.0]
[1746798638455,384.31469597,172.85,172.75,2.0]
[1746798638857,5.7881,172.78,172.75,2.0]
[1746798639357,357.0,172.85,172.75,2.0]
[1746798639559,38.16,172.84,172.75,2.0]
[1746798639956,5.7871,172.81,172.75,2.0]
[1746798640260,38.16,172.84,172.75,2.0]
[1746798640454,27.31469597,172.89,172.75,2.0]
[1746798640664,38.06,172.88,172.75,2.0]
[1746798641558,5.7862,172.84,172.75,2.0]
[1746798641757,357.0,172.91,172.75,2.0]
[1746798641955,496.18,172.92,172.77,27.31469597]
[1746798642155,496.18,172.92,172.78,100.12]
[1746798642351,496.16,172.92,172.78,100.12]
[1746798642551,496.16,172.92,172.81,5.7869]
[1746798642855,496.16,172.92,172.78,100.12]
[1746798643452,496.16,172.92,172.77,27.31469597]
[1746798643655,496.16,172.92,172.77,38.0]
[1746798644454,496.16,172.92,172.76,37.92]
[1746798644863,11.5675,172.91,172.75,460.28]
[1746798645064,27.31469597,172.9,172.75,2.0]
[1746798645468,5.7883,172.78,172.75,2.0]
[1746798645762,37.9,172.86,172.75,2.0]
[1746798646161,37.84,172.88,172.75,2.0]
[1746798646464,5.7857,172.85,172.75,2.0]
[1746798646653,37.84,172.88,172.75,2.0]
[1746798647061,5.7865,172.83,172.78,5.7877]
[1746798647255,37.84,172.88,172.75,2.0]
[1746798647656,37.84,172.88,172.75,29.31469597]
[1746798648167,5.7855,172.86,172.82,5.7866]
[1746798648663,37.84,172.88,172.83,5.7862]
[1746798649278,5.785,172.87,172.83,5.7862]
[1746798649464,37.84,172.88,172.75,29.31469597]
[1746798649665,37.84,172.88,172.75,2.0]
[1746798650260,37.84,172.88,172.75,39.72]
[1746798651058,5.7866,172.83,172.79,5.7876]
[1746798651258,37.84,172.88,172.79,5.7876]
[1746798651860,37.84,172.88,172.8,5.7873]
[1746798652266,5.7862,172.84,172.79,5.7875]
[1746798652864,5.7862,172.84,172.8,5.7871]
[1746798653063,37.84,172.88,172.8,5.7871]
[1746798653562,37.84,172.88,172.75,39.46]
[1746798653761,37.42,172.89,172.75,39.46]
[1746798653966,37.4,172.89,172.75,39.46]
[1746798654175,37.4,172.89,172.75,2.0]
[1746798655766,5.7863,172.83,172.75,2.0]
[1746798656362,5.7866,172.82,172.77,5.7881]
[1746798656561,37.4,172.89,172.75,2.0]
[1746798656764,27.31469597,172.86,172.75,7.7889]
[1746798657469,54.76,172.89,172.75,2.0]
[1746798657671,37.4,172.89,172.75,2.0]
[1746798657865,5.7856,172.85,172.76,37.7]
[1746798658370,5.7856,172.85,172.8,5.7871]
[1746798658672,37.4,172.89,172.76,37.7]
[1746798659066,37.4,172.89,172.79,5.7874]
[1746798659268,37.58,172.89,172.76,37.7]
[1746798659764,37.58,172.89,172.75,2.0]
[1746798659964,37.58,172.89,172.76,6.49268988]
[1746798659965,27.31469597,172.87,172.76,6.49268988]
[1746798660170,27.31469597,172.87,172.77,6.49268988]
[1746798660367,27.31469597,172.87,172.78,6.49268988]
[1746798660700,37.58,172.89,172.79,6.52015077]
[1746798660867,27.31469597,172.86,172.76,1.0]
[1746798661068,384.31469597,172.86,172.76,1.0]
[1746798662069,27.31469597,172.82,172.76,1.0]
[1746798662369,37.5,172.81,172.76,1.0]
[1746798662771,5.7883,172.77,172.76,1.0]
[1746798662962,37.5,172.81,172.66,37.48]
[1746798663161,5.7895,172.74,172.68,5.791]
[1746798663370,5.7895,172.74,172.58,458.4]
[1746798663571,37.46,172.75,172.63,37.5]
[1746798663771,5.7907,172.7,172.62,37.46]
[1746798663972,37.46,172.75,172.6,37.44]
[1746798664172,5.7912,172.69,172.63,5.7927]
[1746798664374,37.46,172.75,172.63,5.7927]
[1746798664573,27.31469597,172.72,172.6,1.8661]
[1746798664877,5.792,172.66,172.6,1.8661]
[1746798665081,37.36,172.67,172.56,1.8733]
[1746798665372,37.36,172.67,172.55,30.98118682]
[1746798665771,5.7932,172.63,172.57,5.7947]
[1746798665970,5.7932,172.63,172.55,30.98118682]
[1746798666274,37.36,172.67,172.55,30.98118682]
[1746798667075,5.7927,172.64,172.58,5.7944]
[1746798667277,37.36,172.67,172.55,30.98118682]
[1746798667474,37.36,172.67,172.55,3.8283]
[1746798667676,37.36,172.67,172.51,1.8733]
[1746798668173,357.0,172.66,172.51,1.8733]
[1746798668371,27.31469597,172.64,172.51,1.8733]
[1746798668676,5.7945,172.59,172.51,1.8733]
[1746798669077,37.44,172.61,172.51,1.8733]
[1746798669474,37.44,172.61,172.5,458.4]
[1746798669776,5.7949,172.58,172.49,3.6525]
[1746798670179,37.44,172.61,172.49,3.6525]
[1746798670679,37.44,172.61,172.57,5.7947]
[1746798670867,37.46,172.65,172.49,3.6525]
[1746798671369,37.48,172.66,172.49,3.6525]
[1746798671572,458.5,172.7,172.52,27.31469597]
[1746798671772,37.46,172.69,172.66,5.7917]
[1746798671979,37.46,172.69,172.58,37.46]
[1746798672183,37.46,172.69,172.59,3.81]
[1746798672983,37.46,172.69,172.53,498.0915]
[1746798673191,27.31469597,172.68,172.59,5.7941]
[1746798673386,37.46,172.69,172.54,3.81]
[1746798673586,5.7936,172.62,172.57,5.7948]
[1746798673776,384.31469597,172.68,172.54,3.81]
[1746798673977,27.31469597,172.64,172.53,37.4]
[1746798674278,37.34,172.67,172.53,37.4]
[1746798674477,27.31469597,172.65,172.49,39.1393]
[1746798674874,27.31469597,172.65,172.53,5.7961]
[1746798675081,27.31469597,172.65,172.49,39.1393]
[1746798675983,5.793,172.63,172.49,39.1393]
[1746798676183,27.31469597,172.65,172.49,39.1393]
[1746798676580,27.31469597,172.65,172.58,5.7946]
[1746798676880,496.14,172.67,172.49,39.1393]
[1746798677184,496.0,172.67,172.52,27.31469597]
[1746798678084,496.0,172.67,172.6,5.7938]
[1746798678283,496.0,172.67,172.52,27.31469597]
[1746798678686,496.0,172.67,172.59,5.7941]
[1746798678882,496.0,172.67,172.49,13.3945]
[1746798679087,5.7943,172.6,172.55,5.7954]
[1746798679286,37.04,172.61,172.5,37.08]
[1746798679490,37.04,172.61,172.49,38.8393]
[1746798679781,5.7941,172.6,172.55,5.7954]
[1746798679988,37.04,172.61,172.49,38.8393]
[1746798680288,37.06,172.66,172.49,38.8393]
[1746798680786,5.7927,172.64,172.49,38.8393]
[1746798681086,37.06,172.66,172.49,38.8393]
[1746798681285,37.06,172.66,172.5,11.5946]
[1746798681486,1.15814465,172.69,172.52,27.31469597]
[1746798681786,1.15814465,172.69,172.56,27.31469597]
[1746798682095,1.15814465,172.69,172.57,40.7782]
[1746798682280,1.15814465,172.69,172.57,42.7683]
[1746798682486,1.15814465,172.69,172.68,5.7913]
[1746798684492,4.465e-05,172.69,172.68,5.7913]
[1746798685298,4.465e-05,172.69,172.68,11.5913]
[1746798685499,4.465e-05,172.69,172.68,5.7913]
[1746798686497,36.7,172.83,172.78,5.7878]
[1746798686703,36.72,172.85,172.72,36.72]
[1746798687094,357.0,172.88,172.72,36.72]
[1746798687409,36.72,172.87,172.72,36.72]
[1746798687599,5.7882,172.78,172.73,5.7896]
[1746798687800,27.31469597,172.85,172.72,36.72]
[1746798687999,36.72,172.87,172.72,36.72]
[1746798688192,36.68,172.86,172.72,36.72]
[1746798688595,5.7865,172.83,172.79,5.7875]
[1746798688799,393.62,172.88,172.67,458.76]
[1746798688999,393.62,172.88,172.68,36.92]
[1746798689200,5.7873,172.81,172.68,36.92]
[1746798689399,393.62,172.88,172.68,36.92]
[1746798689596,357.0,172.88,172.81,5.7867]
[1746798689810,64.25469597,172.89,172.76,36.94]
[1746798689994,27.35233281,172.84,172.66,5.6314]
[1746798690202,5.7884,172.77,172.66,5.6314]
[1746798690397,36.92,172.83,172.66,5.6314]
[1746798691399,5.7887,172.76,172.71,5.7903]
[1746798691604,5.7887,172.76,172.68,36.82]
[1746798692004,36.92,172.83,172.66,5.6314]
[1746798692205,27.35233281,172.8,172.66,42.3714]
[1746798692406,27.35233281,172.8,172.7,5.7906]
[1746798692603,27.35233281,172.8,172.66,42.3714]
[1746798693107,27.35233281,172.8,172.66,5.6314]
[1746798693304,27.35233281,172.8,172.66,3.8028]
[1746798693707,357.0,172.82,172.66,3.8028]
[1746798694304,5.788,172.78,172.66,3.8028]
[1746798694606,357.0,172.82,172.66,3.8028]
[1746798694801,357.0,172.82,172.67,27.35233281]
[1746798695308,27.35233281,172.84,172.68,1.976]
[1746798695309,63.91233281,172.84,172.68,1.976]
[1746798695507,27.35233281,172.84,172.68,1.976]
[1746798695804,27.35233281,172.84,172.69,62.0]
[1746798696003,27.35233281,172.84,172.7,36.5]
[1746798696207,36.46,172.85,172.71,27.35233281]
[1746798696718,5.7865,172.83,172.71,27.35233281]
[1746798696907,36.46,172.85,172.71,27.35233281]
[1746798697211,5.7863,172.83,172.79,5.7875]
[1746798697406,357.0,172.9,172.75,36.4]
[1746798697707,5.7848,172.88,172.84,5.7857]
[1746798697908,36.38,172.92,172.81,36.36]
[1746798698115,357.0,172.97,172.81,36.36]
[1746798698498,36.32,172.96,172.81,36.36]
[1746798699000,36.32,172.96,172.8,36.28]
[1746798699608,27.35233281,172.94,172.8,36.28]
[1746798699802,36.32,172.96,172.8,36.28]
[1746798700004,27.35233281,172.94,172.8,36.28]
[1746798700411,27.35233281,172.94,172.81,5.7866]
[1746798700809,27.35233281,172.94,172.8,36.28]
[1746798701103,5.7852,172.87,172.82,5.7865]
[1746798701404,5.784,172.9,172.8,36.28]
[1746798701601,36.16,172.92,172.8,36.28]
[1746798702012,36.16,172.92,172.82,5.7866]
[1746798702309,36.16,172.92,172.8,36.28]
[1746798702908,36.18,172.95,172.8,36.28]
[1746798703109,27.35233281,172.96,172.8,36.28]
[1746798703330,393.16,172.97,172.8,36.28]
[1746798703606,5.7835,172.92,172.8,494.72]
[1746798703809,393.16,172.97,172.8,494.72]
[1746798704008,5.7828,172.94,172.89,5.784]
[1746798704211,36.16,172.97,172.89,5.784]
[1746798704511,5.7824,172.95,172.91,5.7833]
[1746798704810,458.6,172.99,172.87,5.593]
[1746798705308,458.6,172.99,172.88,5.7843]
[1746798705507,458.6,172.99,172.87,5.593]
[1746798705711,5.7836,172.91,172.87,11.3777]
[1746798705902,458.6,172.99,172.87,3.6651]
[1746798706914,458.6,172.99,172.85,35.94]
[1746798707311,5.7841,172.9,172.85,5.7853]
[1746798707506,27.35233281,172.96,172.85,5.7853]
[1746798707711,27.35233281,172.96,172.83,35.94]
[1746798707920,485.95233281,172.99,172.83,35.94]
[1746798708312,485.95233281,172.99,172.85,5.7854]
[1746798708514,485.95233281,172.99,172.83,35.94]
[1746798708811,5.7833,172.92,172.87,5.7847]
[1746798709315,5.7833,172.92,172.83,35.94]
[1746798709316,35.86,172.96,172.83,35.94]
[1746798709912,5.7839,172.9,172.85,5.7854]
[1746798710219,35.86,172.96,172.83,35.94]
[1746798710413,35.86,172.96,172.87,5.7849]
[1746798710711,35.86,172.96,172.83,35.94]
[1746798710915,5.784,172.9,172.83,35.94]
[1746798711114,35.86,172.96,172.83,35.94]
[1746798711422,485.95233281,172.99,172.83,35.94]
[1746798711618,35.66,172.98,172.89,5.784]
[1746798711818,35.66,172.98,172.83,35.94]
[1746798712520,27.35233281,172.95,172.82,39.3393]
[1746798712714,27.35233281,172.95,172.84,5.7859]
[1746798713717,5.7846,172.89,172.84,5.7859]
[1746798713911,5.7846,172.89,172.85,5.7855]
[1746798714108,392.66,172.98,172.82,37.4537]
[1746798714366,35.64,173.02,172.83,27.35233281]
[1746798715314,27.35233281,173.03,172.83,27.35233281]
[1746798715521,35.58,173.01,172.83,27.35233281]
[1746798716317,5.7836,172.91,172.83,27.35233281]
[1746798716521,35.54,172.96,172.82,1.8337]
[1746798716717,35.54,172.96,172.83,35.54]
[1746798717521,368.5579,173.05,172.83,124.89233281]
[1746798717522,35.5,173.0,172.83,124.89233281]
[1746798717825,35.5,173.0,172.83,62.89233281]
[1746798718114,35.66,173.02,172.83,74.46423281]
[1746798718922,384.35233281,173.05,172.87,27.35233281]
[1746798719122,5.7807,173.0,172.96,5.7816]
[1746798719320,35.62,173.04,172.96,5.7816]
[1746798719524,35.62,173.04,172.89,3.7807]
[1746798719822,5.7811,172.99,172.95,5.782]
[1746798720019,27.35233281,173.01,172.9,1.847]
[1746798720215,35.54,173.0,172.89,1.924]
[1746798720518,35.54,173.0,172.74,27.35233281]
[1746798720519,27.35233281,172.93,172.74,27.35233281]
[1746798720723,5.7855,172.86,172.82,5.7864]
[1746798720928,35.54,172.92,172.78,35.54]
[1746798721429,35.54,172.92,172.79,35.5]
[1746798721724,5.7858,172.85,172.81,5.7866]
[1746798721924,35.54,172.92,172.75,1.8142]
[1746798722116,27.35233281,172.89,172.75,1.8142]
[1746798722320,27.35233281,172.89,172.74,3.8296]
[1746798722520,27.35233281,172.81,172.67,20.19595963]
[1746798722725,35.42,172.8,172.67,20.19595963]
[1746798722920,27.35233281,172.77,172.67,20.19595963]
[1746798724126,357.0,172.79,172.67,20.19595963]
[1746798724316,357.0,172.79,172.61,35.44]
[1746798724515,357.0,172.79,172.62,27.35233281]
[1746798724726,35.48,172.78,172.62,27.35233281]
[1746798725126,35.48,172.78,172.74,5.7891]
[1746798725529,35.48,172.78,172.68,35.54]
[1746798725727,35.5,172.82,172.69,3.7428]
[1746798726121,41.2867,172.82,172.69,3.7428]
[1746798726331,357.0,172.87,172.71,27.35233281]
[1746798726629,5.7859,172.84,172.8,5.7872]
[1746798726925,35.72,172.89,172.75,35.76]
[1746798727431,5.7862,172.84,172.79,5.7874]
[1746798727626,35.72,172.89,172.75,35.76]
[1746798728728,5.7853,172.86,172.75,35.76]
[1746798728930,35.72,172.89,172.75,35.76]
[1746798729329,27.35233281,172.86,172.75,35.76]
[1746798729832,5.7864,172.83,172.77,5.788]
[1746798730225,35.92,172.84,172.75,35.76]
[1746798730831,41.706,172.84,172.79,5.7874]
[1746798732230,41.706,172.84,172.75,35.76]
[1746798732231,35.92,172.84,172.75,35.76]
[1746798732735,5.7864,172.83,172.78,5.7877]
[1746798733731,5.7864,172.83,172.79,5.7876]
[1746798733936,35.92,172.84,172.73,35.58]
[1746798734630,35.92,172.84,172.72,35.52]
[1746798734931,5.7868,172.82,172.77,5.7881]
[1746798735133,35.92,172.84,172.77,5.7881]
[1746798735332,35.92,172.84,172.72,35.52]
[1746798735634,35.92,172.84,172.72,35.46]
[1746798736128,5.7869,172.82,172.72,35.46]
[1746798736929,5.7869,172.82,172.78,5.7877]
[1746798737136,27.35233281,172.9,172.72,35.46]
[1746798737338,35.34,172.89,172.72,35.46]
[1746798737737,27.35233281,172.9,172.73,27.35233281]
[1746798737934,62.75233281,172.9,172.73,27.35233281]
[1746798738440,35.4,172.9,172.73,27.35233281]
[1746798738633,5.7852,172.87,172.74,62.0]
[1746798738839,35.4,172.9,172.74,62.0]
[1746798739342,357.0,172.92,172.75,11.5779]
[1746798739537,35.3,172.92,172.75,11.5779]
[1746798739736,35.3,172.92,172.84,5.7858]
[1746798740033,35.3,172.92,172.8,35.34]
[1746798740234,458.3,172.94,172.81,3.9532]
[1746798740444,493.6,172.94,172.81,5.7596]
[1746798740637,493.6,172.94,172.88,5.7843]
[1746798740830,458.3,172.94,172.81,5.7596]
[1746798741031,27.35233281,173.0,172.81,33.11193281]